lending/lending_fUSD_20240507
["ID","MTS","AMOUNT","RATE_DAILY","PERIOD"]
[326567438,1715111445337,-500.0,0.00019178,2]
[326567439,1715111445348,-500.0,0.00019178,2]
[326567440,1715111445359,-500.0,0.00019178,2]
[326567441,1715111445370,-500.0,0.00019178,2]
[326567442,1715111445381,-1066.73,0.00019178,2]
[326567443,1715111445391,-500.0,0.00019178,2]
[326567444,1715111445402,-511.6,0.00019178,2]
[326567445,1715111445412,-500.0,0.00019178,2]
[326567446,1715111445422,-500.0,0.00019178,2]
[326567447,1715111445432,-500.0,0.00019178,2]
[326567448,1715111445443,-500.0,0.00019178,2]
[326567449,1715111445453,-500.0,0.00019178,2]
[326567450,1715111445464,-500.0,0.00019178,2]
[326567451,1715111445474,-672.25,0.00019178,2]
[326567452,1715111445485,-500.0,0.00019178,2]
[326567453,1715111445495,-500.0,0.00019178,2]
[326567454,1715111445506,-500.0,0.00019178,2]
[326567455,1715111445516,-500.0,0.00019178,2]
[326567456,1715111445526,-500.0,0.00019178,2]
[326567457,1715111445536,-500.0,0.00019178,2]
[326567458,1715111445546,-500.0,0.00019178,2]
[326567459,1715111445556,-500.0,0.00019178,2]
[326567460,1715111445567,-500.0,0.00019178,2]
[326567461,1715111445577,-500.0,0.00019178,2]
[326567462,1715111445588,-599.9,0.00019178,2]
[326567463,1715111445598,-500.0,0.00019178,2]
[326567464,1715111445608,-446.17548086,0.00019178,2]
[326567465,1715111445618,-500.0,0.00019178,2]
[326567466,1715111445628,-500.0,0.00019178,2]
[326567467,1715111445638,-792.3,0.00019178,2]
[326567468,1715111445649,-500.0,0.00019178,2]
[326567469,1715111445659,-500.0,0.00019178,2]
[326567470,1715111445669,-500.0,0.00019178,2]
[326567471,1715111445679,-500.0,0.00019178,2]
[326567472,1715111445689,-500.0,0.00019178,2]
[326567473,1715111445699,-537.79,0.00019178,2]
[326567474,1715111445710,-500.0,0.00019178,2]
[326567475,1715111445722,-500.0,0.00019178,2]
[326567476,1715111445733,-615.03,0.00019178,2]
[326567477,1715111445743,-500.0,0.00019178,2]
[326567478,1715111445754,-500.0,0.00019178,2]
[326567479,1715111445764,-500.0,0.00019178,2]
[326567480,1715111445775,-512.72,0.00019178,2]
[326567481,1715111445786,-500.0,0.00019178,2]
[326567482,1715111445796,-500.0,0.00019178,2]
[326567483,1715111445806,-500.0,0.00019178,2]
[326567484,1715111445816,-500.0,0.00019178,2]
[326567485,1715111445827,-438.30445198,0.00019178,2]
[326567486,1715111445837,-500.0,0.00019178,2]
[326567487,1715111445848,-500.0,0.00019178,2]
[326567488,1715111445858,-500.0,0.00019178,2]
[326567489,1715111445869,-500.0,0.00019178,2]
[326567490,1715111445879,-663.09,0.00019178,2]
[326567491,1715111445889,-500.0,0.00019178,2]
[326567492,1715111445900,-500.0,0.00019178,2]
[326567493,1715111445910,-500.0,0.00019178,2]
[326567494,1715111445920,-500.0,0.00019178,2]
[326567495,1715111445931,-500.0,0.00019178,2]
[326567496,1715111445941,-2076.59,0.00019178,2]
[326567497,1715111445951,-500.0,0.00019178,2]
[326567498,1715111445961,-775.02,0.00019178,2]
[326567499,1715111445972,-500.0,0.00019178,2]
[326567500,1715111445982,-500.0,0.00019178,2]
[326567501,1715111445992,-562.34,0.00019178,2]
[326567502,1715111446003,-518.28,0.00019178,2]
[326567503,1715111446013,-500.0,0.00019178,2]
[326567504,1715111446023,-500.0,0.00019178,2]
[326567505,1715111446033,-500.0,0.00019178,2]
[326567506,1715111446043,-500.0,0.00019178,2]
[326567507,1715111446054,-500.0,0.00019178,2]
[326567508,1715111446064,-500.0,0.00019178,2]
[326567509,1715111446075,-662.24,0.00019178,2]
[326567510,1715111446085,-500.0,0.00019178,2]
[326567511,1715111446096,-500.0,0.00019178,2]
[326567512,1715111446106,-500.0,0.00019178,2]
[326567513,1715111446116,-500.0,0.00019178,2]
[326567514,1715111446127,-500.0,0.00019178,2]
[326567515,1715111446138,-500.0,0.00019178,2]
[326567516,1715111446148,-727.19,0.00019178,2]
[326567517,1715111446159,-585.49980339,0.00019178,2]
[326567518,1715111446169,-507.3440341,0.00019178,2]
[326567519,1715111446179,-500.0,0.00019178,2]
[326567520,1715111446190,-500.0,0.00019178,2]
[326567521,1715111446200,-500.0,0.00019178,2]
[326567522,1715111446210,-769.75,0.00019178,2]
[326567523,1715111446220,-910.22,0.00019178,2]
[326567524,1715111446231,-500.0,0.00019178,2]
[326567525,1715111446241,-500.0,0.00019178,2]
[326567526,1715111446254,-500.0,0.00019178,2]
[326567527,1715111446264,-500.0,0.00019178,2]
[326567528,1715111446279,-500.0,0.00019178,2]
[326567529,1715111446291,-500.0,0.00019178,2]
[326567530,1715111446302,-500.0,0.00019178,2]
[326567531,1715111446312,-8906.52,0.00019178,2]
[326567532,1715111446323,-1595.53,0.00019178,2]
[326567533,1715111446334,-500.0,0.00019178,2]
[326567550,1715111446345,-500.0,0.00019178,2]
[326567553,1715111446758,-500.0,0.00019178,2]
[326567554,1715111446771,-500.0,0.00019178,2]
[326567555,1715111446781,-500.0,0.00019178,2]
[326567556,1715111446790,-6303.39,0.00019178,2]
[326567557,1715111446799,-680.01,0.00019178,2]
[326567558,1715111446809,-500.0,0.00019178,2]
[326567559,1715111446819,-500.0,0.00019178,2]
[326567560,1715111446829,-500.0,0.00019178,2]
[326567561,1715111446839,-500.0,0.00019178,2]
[326567562,1715111446848,-852.91,0.00019178,2]
[326567563,1715111446858,-774.21,0.00019178,2]
[326567564,1715111446867,-500.0,0.00019178,2]
[326567565,1715111446877,-500.0,0.00019178,2]
[326567566,1715111446887,-724.53,0.00019178,2]
[326567567,1715111446896,-636.26,0.00019178,2]
[326567568,1715111446906,-617.27,0.00019178,2]
[326567569,1715111446915,-500.0,0.00019178,2]
[326567570,1715111446925,-567.50711036,0.00019178,2]
[326567571,1715111446935,-500.0,0.00019178,2]
[326567572,1715111446944,-500.0,0.00019178,2]
[326567573,1715111446954,-500.0,0.00019178,2]
[326567574,1715111446964,-500.0,0.00019178,2]
[326567575,1715111446973,-500.0,0.00019178,2]
[326567576,1715111446983,-762.24,0.00019178,2]
[326567577,1715111446993,-500.0,0.00019178,2]
[326567578,1715111447004,-553.11124013,0.00019178,2]
[326567579,1715111447015,-500.0,0.00019178,2]
[326567580,1715111447024,-500.0,0.00019178,2]
[326567581,1715111447034,-500.0,0.00019178,2]
[326567582,1715111447044,-182.99490182,0.00019178,2]
[326567583,1715111447054,-500.0,0.00019178,2]
[326567584,1715111447063,-1136.59,0.00019178,2]
[326567585,1715111447073,-500.0,0.00019178,2]
[326567586,1715111447082,-500.0,0.00019178,2]
[326567587,1715111447092,-500.0,0.00019178,2]
[326567588,1715111447102,-587.94,0.00019178,2]
[326567589,1715111447111,-500.0,0.00019178,2]
[326567590,1715111447121,-500.0,0.00019178,2]
[326567591,1715111447130,-500.0,0.00019178,2]
[326567592,1715111447139,-500.0,0.00019178,2]
[326567593,1715111447149,-500.0,0.00019178,2]
[326567594,1715111447158,-614.34,0.00019178,2]
[326567595,1715111447168,-500.0,0.00019178,2]
[326567596,1715111447177,-500.0,0.00019178,2]
[326567597,1715111447186,-500.0,0.00019178,2]
[326567598,1715111447196,-190.15131037,0.00019178,2]
[326567599,1715111447205,-500.0,0.00019178,2]
[326567600,1715111447215,-500.0,0.00019178,2]
[326567601,1715111447225,-3884.39,0.00019178,2]
[326567602,1715111447234,-500.0,0.00019178,2]
[326567603,1715111447244,-500.0,0.00019178,2]
[326567604,1715111447254,-214.32150952,0.00019178,2]
[326567605,1715111447282,-285.67849048,0.00019178,2]
[326567606,1715111447292,-37.72650952,0.00019178,2]
[326567607,1715111447304,-737.7791199,0.00019178,2]
[326567608,1715111447317,-47.01437058,0.00019178,2]
[326567609,1715111447327,-649.90562942,0.00019178,2]
[326567610,1715111447338,-133.25437058,0.00019178,2]
[326567611,1715111447349,-808.52,0.00019178,2]
[326567612,1715111447358,-500.0,0.00019178,2]
[326567613,1715111447369,-500.0,0.00019178,2]
[326567614,1715111447378,-271.40738842,0.00019178,2]
[326567615,1715111447389,-228.59261158,0.00019178,2]
[326567616,1715111447399,-22.63913841,0.00019178,2]
[326567617,1715111447411,-477.36086159,0.00019178,2]
[326567618,1715111447421,-500.0,0.00019178,2]
[326567619,1715111447431,-500.0,0.00019178,2]
[326567620,1715111447440,-500.0,0.00019178,2]
[326567621,1715111447449,-522.19,0.00019178,2]
[326567622,1715111447460,-696.53,0.00019178,2]
[326567623,1715111447469,-500.0,0.00019178,2]
[326567624,1715111447479,-500.0,0.00019178,2]
[326567625,1715111447489,-500.0,0.00019178,2]
[326567626,1715111447498,-723.92,0.00019178,2]
[326567627,1715111447509,-500.0,0.00019178,2]
[326567628,1715111447519,-444.39600992,0.00019178,2]
[326567629,1715111447532,-55.60399008,0.00019178,2]
[326567630,1715111447541,-474.81767692,0.00019178,2]
[326567631,1715111447969,-25.18232308,0.00019178,2]
[326567632,1715111447978,-500.0,0.00019178,2]
[326567633,1715111447988,-4544.72377197,0.00019178,2]
[326567634,1715111448001,-658.35,0.00019178,2]
[326567636,1715111448013,-800.23622803,0.00019178,2]
[326567638,1715111448022,-1584.58,0.00019178,2]
[326567639,1715111448032,-500.0,0.00019178,2]
[326567641,1715111448042,-500.0,0.00019178,2]
[326567643,1715111448052,-500.0,0.00019178,2]
[326567645,1715111448061,-781.13,0.00019178,2]
[326567647,1715111448071,-500.0,0.00019178,2]
[326567650,1715111448080,-500.0,0.00019178,2]
[326567652,1715111448090,-500.0,0.00019178,2]
[326567654,1715111448099,-336.23,0.00019178,2]
[326567655,1715111448108,-500.0,0.00019178,2]
[326567658,1715111448118,-500.0,0.00019178,2]
[326567660,1715111448127,-2589.95,0.00019178,2]
[326567661,1715111448137,-557.61,0.00019178,2]
[326567662,1715111448146,-708.88,0.00019178,2]
[326567663,1715111448155,-500.0,0.00019178,2]
[326567664,1715111448165,-500.0,0.00019178,2]
[326567665,1715111448174,-500.0,0.00019178,2]
[326567666,1715111448183,-540.73,0.00019178,2]
[326567667,1715111448193,-233.01554601,0.00019178,2]
[326567668,1715111448202,-500.0,0.00019178,2]
[326567669,1715111448212,-500.0,0.00019178,2]
[326567670,1715111448221,-825.21,0.00019178,2]
[326567671,1715111448230,-500.0,0.00019178,2]
[326567672,1715111448240,-500.0,0.00019178,2]
[326567673,1715111448249,-500.0,0.00019178,2]
[326567674,1715111448259,-500.0,0.00019178,2]
[326567675,1715111448270,-1398.34,0.00019178,2]
[326567676,1715111448281,-639.5,0.00019178,2]
[326567677,1715111448291,-1564.82,0.00019178,2]
[326567678,1715111448301,-656.6,0.00019178,2]
[326567679,1715111448311,-500.0,0.00019178,2]
[326567680,1715111448321,-2244.09,0.00019178,2]
[326567681,1715111448331,-589.11,0.00019178,2]
[326567682,1715111448341,-972.98,0.00019178,2]
[326567683,1715111448352,-500.0,0.00019178,2]
[326567684,1715111448362,-500.0,0.00019178,2]
[326567685,1715111448371,-500.0,0.00019178,2]
[326567686,1715111448381,-500.0,0.00019178,2]
[326567687,1715111448390,-500.0,0.00019178,2]
[326567688,1715111448400,-739.28,0.00019178,2]
[326567689,1715111448409,-618.1,0.00019178,2]
[326567690,1715111448419,-500.0,0.00019178,2]
[326567691,1715111448429,-500.0,0.00019178,2]
[326567692,1715111448440,-500.0,0.00019178,2]
[326567693,1715111448450,-904.44,0.00019178,2]
[326567694,1715111448460,-935.18,0.00019178,2]
[326567695,1715111448470,-991.86,0.00019178,2]
[326567696,1715111448480,-500.0,0.00019178,2]
[326567697,1715111448489,-500.0,0.00019178,2]
[326567698,1715111448498,-5993.6,0.00019178,2]
[326567699,1715111448509,-1639.15,0.00019178,2]
[326567700,1715111448519,-500.0,0.00019178,2]
[326567701,1715111448530,-500.0,0.00019178,2]
[326567702,1715111448540,-1939.99,0.00019178,2]
[326567703,1715111448550,-500.0,0.00019178,2]
[326567704,1715111448559,-500.0,0.00019178,2]
[326567705,1715111448569,-1007.62,0.00019178,2]
[326567706,1715111448579,-500.0,0.00019178,2]
[326567707,1715111448589,-500.0,0.00019178,2]
[326567708,1715111448599,-500.0,0.00019178,2]
[326567709,1715111448609,-500.0,0.00019178,2]
[326567710,1715111448619,-500.0,0.00019178,2]
[326567711,1715111448629,-673.78,0.00019178,2]
[326567712,1715111448640,-804.64,0.00019178,2]
[326567713,1715111448650,-973.84,0.00019178,2]
[326567714,1715111448660,-500.0,0.00019178,2]
[326567715,1715111448669,-691.57,0.00019178,2]
[326567716,1715111448681,-974.68,0.00019178,2]
[326567717,1715111448691,-500.0,0.00019178,2]
[326567718,1715111448701,-500.0,0.00019178,2]
[326567719,1715111448710,-1163.63,0.00019178,2]
[326567720,1715111448720,-1193.35,0.00019178,2]
[326567721,1715111448730,-2563.79,0.00019178,2]
[326567722,1715111448740,-1874.56,0.00019178,2]
[326567723,1715111448749,-500.0,0.00019178,2]
[326567724,1715111448760,-1008.42,0.00019178,2]
[326567725,1715111448770,-1601.0,0.00019178,2]
[326567726,1715111448780,-2359.52,0.00019178,2]
[326567727,1715111448789,-2420.13,0.00019178,2]
[326567728,1715111448799,-500.0,0.00019178,2]
[326567729,1715111448808,-500.0,0.00019178,2]
[326567730,1715111448818,-669.36,0.00019178,2]
[326567731,1715111448828,-500.0,0.00019178,2]
[326567732,1715111448838,-500.0,0.00019178,2]
[326567733,1715111448847,-500.0,0.00019178,2]
[326567734,1715111448857,-638.25,0.00019178,2]
[326567735,1715111448866,-500.0,0.00019178,2]
[326567736,1715111448876,-500.0,0.00019178,2]
[326567737,1715111448886,-500.0,0.00019178,2]
[326567738,1715111448896,-642.95,0.00019178,2]
[326567739,1715111448906,-500.0,0.00019178,2]
[326567740,1715111448916,-799.78,0.00019178,2]
[326567741,1715111448926,-994.26,0.00019178,2]
[326567742,1715111448935,-500.0,0.00019178,2]
[326567743,1715111448947,-500.0,0.00019178,2]
[326567744,1715111448956,-500.0,0.00019178,2]
[326567745,1715111448966,-1436.12,0.00019178,2]
[326567746,1715111448976,-500.0,0.00019178,2]
[326567747,1715111448986,-856.92,0.00019178,2]
[326567748,1715111448995,-500.0,0.00019178,2]
[326567749,1715111449006,-154.91246141,0.00019178,2]
[326567750,1715111449015,-500.0,0.00019178,2]
[326567751,1715111449026,-1027.06,0.00019178,2]
[326567752,1715111449036,-500.0,0.00019178,2]
[326567753,1715111449046,-500.0,0.00019178,2]
[326567754,1715111449055,-7910.69,0.00019178,2]
[326567755,1715111449064,-500.0,0.00019178,2]
[326567756,1715111449074,-656.2,0.00019178,2]
[326567757,1715111449084,-500.0,0.00019178,2]
[326567758,1715111449093,-399.28639842,0.00019178,2]
[326567759,1715111449103,-1604.7,0.00019178,2]
[326567760,1715111449113,-121.15378778,0.00019178,2]
[326567761,1715111449380,-547.58621222,0.00019178,2]
[326567762,1715111449390,-489.59280853,0.00019178,2]
[326567763,1715111449403,-10.40719147,0.00019178,2]
[326567764,1715111449413,-500.0,0.00019178,2]
[326567765,1715111449423,-500.0,0.00019178,2]
[326567766,1715111449433,-193.7638649,0.00019178,2]
[326567767,1715111449445,-306.2361351,0.00019178,2]
[326567768,1715111449454,-500.0,0.00019178,2]
[326567769,1715111449463,-420.76386253,0.00019178,2]
[326567770,1715111449475,-1084.55613747,0.00019178,2]
[326567771,1715111449485,-285.01848288,0.00019178,2]
[326567772,1715111449495,-500.0,0.00019178,2]
[326567773,1715111449505,-500.0,0.00019178,2]
[326567774,1715111449514,-500.0,0.00019178,2]
[326567775,1715111449524,-954.74,0.00019178,2]
[326567776,1715111449534,-845.87,0.00019178,2]
[326567777,1715111449543,-500.0,0.00019178,2]
[326567778,1715111449553,-500.0,0.00019178,2]
[326567779,1715111449722,-500.0,0.00019178,2]
[326567780,1715111449742,-500.0,0.00019178,2]
[326567781,1715111449752,-756.52,0.00019178,2]
[326567782,1715111449762,-756.52,0.00019178,2]
[326567783,1715111449772,-901.65,0.00019178,2]
[326567784,1715111449782,-500.0,0.00019178,2]
[326567785,1715111449791,-500.0,0.00019178,2]
[326567786,1715111449801,-500.0,0.00019178,2]
[326567787,1715111449810,-2097.1,0.00019178,2]
[326567788,1715111449820,-500.0,0.00019178,2]
[326567789,1715111449830,-500.0,0.00019178,2]
[326567790,1715111449840,-753.15,0.00019178,2]
[326567791,1715111449850,-500.0,0.00019178,2]
[326567792,1715111449859,-1746.22,0.00019178,2]
[326567793,1715111449870,-500.0,0.00019178,2]
[326567794,1715111449879,-1081.41,0.00019178,2]
[326567795,1715111449889,-500.0,0.00019178,2]
[326567796,1715111449900,-561.42,0.00019178,2]
[326567797,1715111449909,-683.61,0.00019178,2]
[326567798,1715111449919,-403.41178777,0.00019178,2]
[326567799,1715111450797,-355.46848115,0.0001788,2]
[326567800,1715111450847,-42.98796083,0.0001788,2]
[326567801,1715111450859,-380.38683476,0.0001788,2]
[326567802,1715111450869,-96.58821223,0.00019178,2]
[326567803,1715111450879,-500.0,0.00019178,2]
[326567804,1715111450889,-195.65895307,0.00019178,2]
[326567809,1715111779875,1000.00000004,0.00025,120]
[326567810,1715111829904,-707.68247554,9.788e-05,2]
[326567811,1715111829927,-155.0,9.789e-05,2]
[326567812,1715111829949,-156.0,9.789e-05,2]
[326567813,1715111829972,-2981.31752446,9.79e-05,2]
[326567814,1715111830770,-2285.44600174,9.79e-05,2]
[326567815,1715111830794,-150.0,9.79e-05,2]
[326567816,1715111830822,-1564.55399826,9.791e-05,2]
[326567817,1715111831702,-4000.0,9.791e-05,2]
[326567818,1715111832722,-4000.0,9.791e-05,2]
[326567819,1715111833937,-343.90570242,9.787e-05,2]
[326567820,1715111833960,-3656.09429758,9.791e-05,2]
[326567821,1715111835405,-4000.0,9.791e-05,2]
[326567822,1715111836382,-4000.0,9.791e-05,2]
[326567823,1715111837535,-1581.17614758,9.791e-05,2]
[326567824,1715111849387,2418.82385242,9.7e-05,2]
[326567825,1715111849409,4000.0,9.7e-05,2]
[326567826,1715111849434,4000.0,9.7e-05,2]
[326567827,1715111849456,4000.0,9.7e-05,2]
[326567828,1715111849478,4000.0,9.7e-05,2]
[326567829,1715111849501,4000.0,9.7e-05,2]
[326567830,1715111865623,-370.7815206,9.7e-05,2]
[326567831,1715111897580,3629.2184794,9.7e-05,2]
[326567832,1715111897603,4000.0,9.7e-05,2]
[326567833,1715111897625,4000.0,9.7e-05,2]
[326567834,1715111897650,4000.0,9.7e-05,2]
[326567835,1715111897673,4000.0,9.7e-05,2]
[326567836,1715111897696,4000.0,9.7e-05,2]
[326567837,1715111897720,4000.0,9.7e-05,2]
[326567838,1715111897742,4000.0,9.7e-05,2]
[326567839,1715111897764,4000.0,9.7e-05,2]
[326567840,1715111897785,4000.0,9.7e-05,2]
[326567841,1715111897807,4000.0,9.7e-05,2]
[326567842,1715111938872,-331.13490455,9.698e-05,2]
[326567843,1715111938898,-155.0,9.698e-05,2]
[326567844,1715111938922,-1246.5281018,9.698e-05,2]
[326567845,1715111938946,-707.68247554,9.699e-05,2]
[326567846,1715111938970,-1559.65451811,9.699e-05,2]
[326567847,1715111939342,-4000.0,9.699e-05,2]
[326567848,1715111939932,-4000.0,9.699e-05,2]
[326567849,1715111940528,-4000.0,9.699e-05,2]
[326567850,1715111941084,-4000.0,9.699e-05,2]
[326567851,1715111955752,-706.89067102,9.697e-05,2]
[326567852,1715111955775,-271.39079511,9.697e-05,2]
[326567853,1715111955796,-364.37212277,9.698e-05,2]
[326567854,1715111955818,-2657.3464111,9.698e-05,2]
[326567855,1715111971967,-155.0,9.697e-05,2]
[326567856,1715111971991,-1613.97026745,9.698e-05,2]
[326567857,1715111972028,-2231.02973255,9.698e-05,2]
[326567858,1715111973030,-3324.21431546,9.698e-05,2]
[326567859,1715111973056,-675.78568454,9.699e-05,2]
[326567860,1715111990482,-1739.14623529,9.698e-05,2]
[326567861,1715111990507,-2260.85376471,9.699e-05,2]
[326567862,1715111992248,155.09818516,8.728e-05,2]
[326567864,1715112257559,-600.0,9.697e-05,2]
[326567865,1715112305138,423.1768076,8.727e-05,2]
[326567866,1715112321992,-600.0,9.599e-05,2]
[326567867,1715112337098,383.05538099,7.854e-05,2]
[326567869,1715112531049,-600.0,9.585e-05,2]
[326567870,1715112570786,-4421.03246962,9.583e-05,2]
[326567871,1715112570813,-954.66016833,9.584e-05,2]
[326567872,1715112570842,-5555.24404801,9.584e-05,2]
[326567873,1715112570868,-1786.85788068,9.584e-05,2]
[326567874,1715112570895,-1786.85788068,9.584e-05,2]
[326567875,1715112570922,-1786.85788068,9.584e-05,2]
[326567876,1715112570949,-1786.85788068,9.584e-05,2]
[326567877,1715112570975,-307395.195733,9.585e-05,2]
[326567878,1715112571002,-5266.7635262,9.585e-05,2]
[326567879,1715112571028,-4736.48162627,9.585e-05,2]
[326567880,1715112571055,-1900.0,9.587e-05,2]
[326567881,1715112571082,-601.0,9.589e-05,2]
[326567882,1715112571107,-533.77884656,9.596e-05,2]
[326567883,1715112571134,-669.0129911,9.599e-05,2]
[326567884,1715112571160,-22795.71490822,9.6e-05,2]
[326567885,1715112571186,-599.27979208,9.697e-05,2]
[326567886,1715112571213,-487.99073708,9.697e-05,2]
[326567887,1715112571238,-167.58743393,9.697e-05,2]
[326567888,1715112571266,-1246.19492949,9.697e-05,2]
[326567889,1715112571291,-405.26692787,9.697e-05,2]
[326567890,1715112571317,-1570.09,9.697e-05,2]
[326567891,1715112571344,-514.99054699,9.698e-05,2]
[326567892,1715112571370,-365690.88492488,9.699e-05,2]
[326567893,1715112571397,-323.77,9.699e-05,2]
[326567894,1715112571423,-120628.46302814,9.7e-05,2]
[326567896,1715112632080,-559.02308185,9.699e-05,2]
[326567898,1715112632090,-4617.24861924,9.7e-05,2]
[326567900,1715112632105,-22027.14139008,9.7e-05,2]
[326567901,1715112632118,-749.56,9.7e-05,2]
[326567902,1715112632130,-62748.13367618,9.7e-05,2]
[326567903,1715112632140,-7711.06073289,9.7e-05,2]
[326567904,1715112632152,-6947.77168517,9.7e-05,2]
[326567905,1715112632164,-1341.16758194,9.7e-05,2]
[326567906,1715112632174,-294.03238734,9.7e-05,2]
[326567907,1715112632184,-6926.48166076,9.7e-05,2]
[326567908,1715112632194,-236.89456322,9.798e-05,2]
[326567909,1715112632203,-409.05075285,9.798e-05,2]
[326567910,1715112632213,-355.81530773,9.798e-05,2]
[326567911,1715112632223,-155.0,9.798e-05,2]
[326567912,1715112632233,-155.0,9.798e-05,2]
[326567913,1715112632244,-2218.69268549,9.798e-05,2]
[326567914,1715112632254,-3279.47094658,9.798e-05,2]
[326567915,1715112632264,-298.39421916,9.798e-05,2]
[326567916,1715112632274,-343.65261696,9.798e-05,2]
[326567917,1715112632284,-527.86451827,9.798e-05,2]
[326567918,1715112632294,-2363.11334746,9.798e-05,2]
[326567919,1715112632303,-155.18265524,9.799e-05,2]
[326567920,1715112632313,-161.73293461,9.799e-05,2]
[326567921,1715112632323,-181.46,9.918e-05,2]
[326567922,1715112632333,-700.0,0.0001,3]
[326567923,1715112632343,-250.4611882,0.00012,2]
[326567924,1715112632353,-294.03238731,0.00012107,2]
[326567925,1715112632363,-2123.58,0.00012289,2]
[326567926,1715112632373,-250.0,0.00012505,2]
[326567927,1715112632383,-150.0,0.00012712,2]
[326567928,1715112632393,-150.0,0.00012897,2]
[326567929,1715112632402,-150.0,0.00012897,2]
[326567930,1715112632412,-447.17373167,0.000129,2]
[326567931,1715112632422,-447.17373163,0.000129,2]
[326567932,1715112632432,-3319.74,0.00013,2]
[326567933,1715112632442,-447.17373163,0.000134,2]
[326567934,1715112632452,-308.14,0.00013693,2]
[326567935,1715112632462,-294.03238731,0.00014613,2]
[326567936,1715112632472,-618.22068598,0.00015,2]
[326567937,1715112632482,-194.45706301,0.000151,2]
[326567938,1715112632493,-447.17373163,0.000153,2]
[326567939,1715112632503,-718.81,0.0001577,2]
[326567940,1715112632513,-216.84,0.00015975,2]
[326567941,1715112632523,-185.88,0.00015976,2]
[326567942,1715112632533,-346.66,0.00016139,2]
[326567943,1715112632543,-294.03238731,0.0001712,2]
[326567944,1715112632553,-447.17373163,0.000172,2]
[326567945,1715112632563,-1477.89424534,0.00017259,2]
[326567946,1715112632573,-749.0,0.000174,2]
[326567947,1715112632584,-167.68316704,0.00017532,2]
[326567948,1715112632594,-718.81,0.00017741,2]
[326567949,1715112632604,-840.78518254,0.0001788,2]
[326567950,1715112632614,-840.78518253,0.0001788,2]
[326567951,1715112632623,-840.78518253,0.0001788,2]
[326567953,1715112632634,-840.78518253,0.0001788,2]
[326567955,1715112632644,-840.78518253,0.0001788,2]
[326567957,1715112632654,-840.78518253,0.0001788,2]
[326567959,1715112632663,-467.30596608,0.0001788,2]
[326567961,1715112632674,-467.30596604,0.0001788,2]
[326567963,1715112632687,-200.51367805,0.0001788,2]
[326567966,1715112632699,-266.79228799,0.0001788,2]
[326567968,1715112632708,-229.55434501,0.0001788,2]
[326567970,1715112632722,-237.75162103,0.0001788,2]
[326567972,1715112632732,-467.30596604,0.0001788,2]
[326567974,1715112632743,-25.29777548,0.0001788,2]
[326567976,1715112632755,-442.00819056,0.0001788,2]
[326567978,1715112632765,-300.0,0.000179,6]
[326567980,1715112632775,-750.0,0.00018,3]
[326567982,1715112632785,-344.70031785,0.00018217,2]
[326567985,1715112632798,-609.95985048,0.00018217,2]
[326567987,1715112632807,-840.78518253,0.00018467,2]
[326567989,1715112632817,-467.30596604,0.00018467,2]
[326567991,1715112632826,-94.2146652,0.000189,6]
[326568025,1715112633730,-419.11229208,0.000189,6]
[326568026,1715112633778,-986.67304272,0.000189,6]
[326568027,1715112633787,-600.0,0.000189,6]
[326568028,1715112633797,-6501.38648378,0.0001899,2]
[326568029,1715112633807,-194.48369158,0.00019078,2]
[326568030,1715112633816,-447.17373163,0.000191,2]
[326568031,1715112633826,-781.72439297,0.00019176,2]